Cogmind - Beta 17 @@@ ROGUE MODE // 2026.06.24 @ 02:53:53 Player: TheLostLambda Result: Destroyed by 5N-8S0(R) with Subdweller Laser Performance ------------- Evolutions (0) 0 Regions Visited (2) 400 Robots Destroyed (25) 125 Value Destroyed (631) 631 Prototype IDs (0) 0 Alien Tech Used (0) 0 Bonus (0) 0 TOTAL SCORE: 1156 Bonus ------- None Cogmind --------- Core Integrity 0/250 Matter 256/300 Energy 84/100 System Corruption 2% Temperature Cool (6) Movement Treading (260) Ox1 Location -10/Subcaves Parts ------- > --- POWER (1) -------- Subdweller Power Source > --- PROPULSION (2) --- Spiked Treads Subdweller Monowheel > --- UTILITY (2) ------ Small Storage Unit Signal Interpreter > --- WEAPON (2) ------- Subdweller Beam Cannon Subdweller Machine Gun > --- INVENTORY (8) ---- Light Ion Engine Subdweller Power Source Subdweller Optics Sensor Array Seismic Detector Improved Targeting Computer Light Cannon Peak State ------------ > --- POWER ------------ Subdweller Power Source > --- PROPULSION ------- Subdweller Monowheel Subdweller Monowheel > --- UTILITY ---------- Small Storage Unit Signal Interpreter > --- WEAPON ----------- Subdweller Machine Gun Subdweller Machine Gun > --- INVENTORY -------- Light Ion Engine Spiked Treads Wheel Sensor Array Seismic Detector Improved Targeting Computer Core Shielding Light Cannon [Rating: 13] Favorites ----------- Power Subdweller Power Source Engine Subdweller Power Source Propulsion Subdweller Monowheel Treads Spiked Treads Wheel Subdweller Monowheel Utility Small Storage Unit Device Seismic Detector Storage Small Storage Unit Processor Signal Interpreter Weapon Subdweller Machine Gun Energy Gun EM Pulse Gun Energy Cannon Subdweller Beam Cannon Ballistic Gun Subdweller Machine Gun Special Weapon Mining Laser Build | -11 -10 -10 ------- Run | Yrd Mat Sub Slots Evolved . | . . . Power . | . . . Propulsion . | . . . Utility . | . . . Weapon . | . . . Parts Attached 23 | 9 4 10 Power 3 | 1 . 2 Engine 3 | 1 . 2 Core . | . . . Reactor . | . . . Propulsion 8 | 3 1 4 Treads 1 | . . 1 Leg . | . . . Wheel 7 | 3 1 3 Hover . | . . . Flight . | . . . Utility 4 | 2 1 1 Device 2 | 1 1 . Storage 1 | 1 . . Processor 1 | . . 1 Hackware . | . . . Protection . | . . . Artifact . | . . . Weapon 8 | 3 2 3 Energy Gun 3 | 2 1 . Energy Cannon 1 | . . 1 Ballistic Gun 3 | 1 . 2 Ballistic Cannon . | . . . Launcher . | . . . Special Weapon 1 | . 1 . Impact Weapon . | . . . Slashing Weapon . | . . . Piercing Weapon . | . . . Special Melee Weapon . | . . . Unidentified Prototypes . | . . . Parts Lost 5 | . 2 3 Power . | . . . Propulsion 1 | . . 1 Utility . | . . . Weapon 4 | . 2 2 Highest Loss Streak 2 | . 1 2 To Critical Strikes . | . . . Average Backups 7 | 3 7 7 Power 1 | . 1 1 Propulsion 1 | 2 2 . Utility 3 | . 2 4 Weapon 1 | . 1 1 Tool/Special . | . . . Unused Backups 11 | . 4 7 Power 1 | . . 1 Propulsion 5 | . 4 1 Utility 4 | . . 4 Weapon 1 | . . 1 Tool/Special . | . . . Average Slot Usage (%) 99 | . 100 98 Engine 14 | . 14 14 Treads 3 | . . 5 Wheel 24 | . 28 22 Device 4 | . 14 . Storage 14 | . 14 14 Processor 9 | . . 13 Energy Gun 4 | . 16 . Energy Cannon 3 | . . 5 Ballistic Gun 16 | . 6 20 Special Weapon 2 | . 5 . Peak Build Rating 13 | 7 7 13 Average Rating 10 | 5 6 12 On Entrance 4 | . 7 7 Avg Prop Armor Cover (%) 10 | . . 10 Naked Turns . | . . . Heaviest Build 22 | 15 15 22 Greatest Support 40 | 26 20 40 Greatest Overweight (x) 1 | . . 1 Average Overweight (x) . | . . . Largest Inventory Capacity 8 | 8 8 8 Average Capacity 7 | 7 8 8 Most Carried 8 | 8 8 8 Average Carried 7 | 3 7 7 Final Capacity 8 | 8 8 8 Final Carried 8 | 8 8 7 Class Distribution -------------------- 59% | Scavenger-Mutant 40% | Mutant Dominant Class ---------------- Mutant | -10/Materials Scavenger-Mutant | -10/Subcaves Resources | -11 -10 -10 ----------- Run | Yrd Mat Sub Matter Collected 640 | 318 113 209 Remotely . | . . . Salvage Created 873 | 132 373 368 Parts 50 | 10 22 18 Haulers Intercepted 1 | . 1 . Recyclers Shooed . | . . . Parts Field Recycled . | . . . Retrieved Matter . | . . . Parts Self-Destructed 2 | . . 2 Prevented . | . . . Parts Restored . | . . . Kills | -11 -10 -10 ------- Run | Yrd Mat Sub Combat Hostiles Destroyed 17 | . 7 10 Guns 15 | . 6 9 Cannons 2 | . 1 1 Classes Destroyed 9 | 2 5 2 Tunneler 3 | 2 1 . Hauler 1 | . 1 . Recycler 1 | 1 . . Operator 1 | . 1 . Watcher 2 | . 2 . Swarmer 4 | . 3 1 Grunt 4 | . 4 . Sentry 1 | . . 1 Subdweller 8 | . . 8 Best Kill Streak 6 | 3 6 2 Combat Bots Only 4 | . 4 2 Max Kills in Single Turn 1 | 1 1 1 Gunslinging . | . . . Exploded . | . . . Melee . | . . . Uniques/NPCs Destroyed . | . . . Combat | -11 -10 -10 -------- Run | Yrd Mat Sub Hostile Shots Fired 82 | . 33 49 Missed 27 | . 7 20 Hits 55 | . 26 29 Projectile 55 | . 26 29 Critical Strikes 1 | . . 1 Damage Taken 858 | . 274 584 Core 258 | . 40 218 Absorbed by Shields . | . . . Core Remaining (%) 100 | 100 . . Volleys Fired 80 | 6 33 41 Largest 2 | 1 2 2 Hottest 120 | 20 120 110 Shots Fired 123 | 6 58 59 Gun 106 | 6 48 52 Cannon 4 | . . 4 Launcher . | . . . Special 13 | . 10 3 Kinetic 69 | 6 11 52 Thermal 17 | . 10 7 Explosive . | . . . Electromagnetic 37 | . 37 . Robot Hit Streak 14 | 6 11 14 Robot Miss Streak 4 | . 4 1 Penetration Max . | . . . Secondary Targets 2 | . 1 1 Max Gunslinging Chain 1 | . 1 1 Shots Hit Robots 80 | 6 33 41 Core Hits 36 | 4 15 17 Critical Kills . | . . . Critical Parts Destroyed . | . . . Critical Strikes 1 | . . 1 Destroy 1 | . . 1 Melee Attacks . | . . . Impact . | . . . Slashing . | . . . Piercing . | . . . Sneak Attacks . | . . . Combat Hostiles . | . . . Follow-up Attacks . | . . . Damage Inflicted 1429 | 72 486 871 Guns 1301 | 72 441 788 Cannons 83 | . . 83 Explosions 21 | . 21 . Melee . | . . . Ramming . | . . . Kinetic 935 | 72 75 788 Thermal 128 | . 45 83 Explosive . | . . . Electromagnetic 366 | . 366 . Impact . | . . . Slashing . | . . . Piercing . | . . . Highest Corruption 2 | . 2 2 Average Corruption 2 | . 2 2 Corruption Purged . | . . . Corruption Blocked . | . . . Effects 17 | . 1 16 Message Errors 5 | . . 5 Matter Fused 6 | . . 6 Energy Discharges 3 | . . 3 Data Loss (minor) 1 | . . 1 Misfires 1 | . 1 . Alerts 1 | . . 1 Overload Shots . | . . . Overflow Damage . | . . . Projectiles . | . . . Explosions . | . . . Melee . | . . . Knockbacks . | . . . Impact . | . . . Kinetic . | . . . Secondary . | . . . Self-Inflicted Damage . | . . . Shots . | . . . Rammed . | . . . Targets Rammed . | . . . Kicked . | . . . Crushed . | . . . Highest Temperature 189 | . 189 . Average Temperature 48 | . 48 . Received Heat Transfer 222 | . 117 105 Siege Activations . | . . . Martial Activations . | . . . Shielding Activations . | . . . Robots Disrupted . | . . . Combat Hostiles . | . . . Robots Corrupted . | . . . Combat Hostiles . | . . . Parts Fried . | . . . Impact Corruptions . | . . . Robots Melted . | . . . Combat Hostiles . | . . . Parts Melted . | . . . Heat Transferred 211 | . 100 111 Parts Sabotaged . | . . . Parts Stolen . | . . . Parts Stripped . | . . . Power Chain Reactions 1 | . 1 . Alert | -11 -10 -10 ------- Run | Yrd Mat Sub Maximum Alert Level . | . . . Low Security (%) 100 | 100 100 . Level 1 . | . . . Level 2 . | . . . Level 3 . | . . . Level 4 . | . . . Level 5 . | . . . High Security . | . . . Max Security . | . . . Peak Influence 110 | 15 110 . Initial 3 | . 3 . Average 37 | 2 42 . Influence Increases 362 | 15 277 70 Destroy 0b10 Robot/C 180 | . 140 40 Destroy 0b10 Robot/NC 40 | 15 25 . Destroy Leader 36 | . 36 . Successful Hack 4 | . 4 . Destroy Structure 12 | . 12 . Lose Combat Pursuer 90 | . 60 30 Influence Decreases 362 | 10 199 153 Entered New Map 43 | . 2 41 Time Decay 297 | 10 177 110 Lost Part 22 | . 20 2 Squads Dispatched 1 | . 1 . Investigation . | . . . Extermination . | . . . Reinforcement 1 | . 1 . Assault . | . . . Garrison . | . . . Intercept . | . . . Searches Triggered . | . . . Construction Impeded . | . . . Haulers Reinforced . | . . . Active Scanning Responses . | . . . Cargo Convoy Interrupts . | . . . Stealth | -11 -10 -10 --------- Run | Yrd Mat Sub Distress Signals 2 | . 2 . Communications Jammed . | . . . Distress Signals . | . . . Times Spotted 31 | . 18 13 Peak Tracking Total 7 | . 7 2 Tactical Retreats 4 | . 3 1 Traps | -11 -10 -10 ------- Run | Yrd Mat Sub Traps Triggered 2 | . 1 1 Indirectly . | . . . Trap Hack Attempts . | . . . Triggered . | . . . Disarmed . | . . . Reprogrammed . | . . . Reused . | . . . Traps Extracted . | . . . Installed . | . . . Triggered . | . . . Machines | -11 -10 -10 ---------- Run | Yrd Mat Sub Machines Disabled . | . . . Max in Single Turn . | . . . Machines Repaired . | . . . Machines Dismantled . | . . . Machines Sabotaged . | . . . Overloaded Fab Kills . | . . . Hacking | -11 -10 -10 --------- Run | Yrd Mat Sub Machines Accessed 9 | . 7 2 Terminals 6 | . 6 . Fabricators . | . . . Repair Stations . | . . . Recycling Units 1 | . 1 . Scanalyzers . | . . . Garrison Access . | . . . Total Hacks 19 | . 16 3 Successful 11 | . 8 3 Failed 8 | . 8 . Catastrophic 3 | . 3 . Database Lockouts . | . . . Manual 7 | . 7 . Terminals 15 | . 15 . Fabricators . | . . . Repair Stations . | . . . Recycling Units 1 | . 1 . Scanalyzers . | . . . Garrison Access . | . . . Terminal Hacks 7 | . 4 3 Record 2 | . 1 1 Open Door 1 | . . 1 Terminal Index 1 | . 1 . Locate Traps 1 | . 1 . Zone Layout 1 | . 1 . Release Object 1 | . . 1 Fabricator Hacks . | . . . Repair Station Hacks . | . . . Recycling Unit Hacks 1 | . 1 . Report Inventory 1 | . 1 . Scanalyzer . | . . . Garrison Access Hacks . | . . . Unauthorized Hacks 3 | . 3 . Terminals 3 | . 3 . Botnet 3 | . 3 . Fabricators . | . . . Repair Stations . | . . . Recycling Units . | . . . Scanalyzers . | . . . Garrison Access . | . . . Data Cores Recovered . | . . . Used . | . . . Hacking Detections 6 | . 6 . Full Trace Events . | . . . Feedback Events . | . . . Feedback Blocked . | . . . Robot Schematics Acquired . | . . . Robots Built . | . . . Authchips . | . . . Time . | . . . Total Robot Build Rating . | . . . Part Schematics Acquired . | . . . Parts Built . | . . . Authchips . | . . . Time . | . . . Total Part Build Rating . | . . . Part Studies Acquired . | . . . Parts Repaired . | . . . Time . | . . . Parts Recycled . | . . . Recycled Matter . | . . . Retrieved Matter . | . . . Retrieved Components . | . . . Parts Scanalyzed . | . . . Part Schematics Acquired . | . . . Parts Damaged . | . . . Bothacking | -11 -10 -10 ------------ Run | Yrd Mat Sub Used RIF Installer . | . . . Robots Hacked . | . . . Non-combat . | . . . Combat . | . . . Robot Hacks Applied . | . . . Relay Couplers Released . | . . . Fabnet Peak Effective % . | . . . Robots Rewired . | . . . Allies Hacked . | . . . Hacks Repelled . | . . . Allies | -11 -10 -10 -------- Run | Yrd Mat Sub Total Allies . | . . . Largest Group . | . . . Highest-Rated Group . | . . . Highest-Rated Ally . | . . . Total Orders . | . . . Ally Attacks . | . . . Total Damage . | . . . Kills . | . . . Allies Corrupted . | . . . Allies Melted . | . . . Intel | -11 -10 -10 ------- Run | Yrd Mat Sub Active Infowar (turns) 637 | 23 591 23 Seismic 637 | 23 591 23 Robot Analysis Total . | . . . Derelict Logs Recovered 1 | . . 1 Drone Launches . | . . . Drone Recoveries . | . . . Exploration | -11 -10 -10 ------------- Run | Yrd Mat Sub Turns Passed 2205 | 91 591 1523 Spaces Moved 1678 | 64 544 1070 Core 1 | 1 . . Treads 129 | . . 129 Legs . | . . . Wheels 1548 | 63 544 941 Hover . | . . . Flight . | . . . Fastest Speed 50 | 50 80 80 Average Speed 109 | 87 80 126 Slowest Speed 260 | 90 80 260 Overloaded Moves . | . . . Propulsion Burnouts . | . . . Robots Hopped . | . . . Potential Cave-ins . | . . . Cave-ins Triggered . | . . . Exploration Rate (%) 44 | 3 71 60 Regions Visited 2 Branch Regions 1 Pre-discovered Areas 1 | . . 1 Known Exits Taken . | . . . Unknown Exits Taken 2 | 1 1 . Scrap Searched . | . . . Spaces Dug 9 | . 9 . Terrain Destroyed 11 | . 11 . Melee . | . . . Projectile 9 | . 9 . AOE 2 | . 2 . Terrain Rammed . | . . . Walls Destroyed . | . . . Machines Disabled . | . . . Actions | -11 -10 -10 --------- Run | Yrd Mat Sub Total 1888 | 88 623 1177 Wait 69 | . 27 42 Move 1676 | 63 543 1070 Hop . | . . . Pick Up 16 | 8 5 3 Fast Attach 10 | 7 . 3 Attach 4 | . 2 2 Detach . | . . . Swap 16 | 3 7 6 Drop 16 | 1 6 9 Fire 80 | 6 33 41 Melee . | . . . Ram . | . . . Kick . | . . . Crush . | . . . Escape Stasis . | . . . Rewire . | . . . Trap . | . . . Miscellaneous 1 | . . 1 Route ------- -11/Scrapyard -10/Materials (discovered 4 exits: [*Mat x2] / [*Min] / *Sub) -10/Subcaves (discovered 2 exits: *Mat x2) History --------- Turn | Location | Event 7 | -11/Scrapyard | Discovered new exit (range 15) 92 | -11/Scrapyard | Entered Materials 163 | -10/Materials | Discovered new exit (range 10) 303 | -10/Materials | Build established: Mutant 370 | -10/Materials | Discovered new exit (range 14) 513 | -10/Materials | Discovered new exit (range 11) 673 | -10/Materials | Discovered new exit (range 10) 683 | -10/Materials | Entered Subcaves 686 | -10/Subcaves | Shifting Twisted Machinery released Spk. Treads 701 | -10/Subcaves | Shifting Twisted Machinery released Sub. Machine Gun 701 | -10/Subcaves | Discovered new exit (range 8) 708 | -10/Subcaves | Identified exit to Materials 996 | -10/Subcaves | Released subatomizers from SUBCON Basin 1167 | -10/Subcaves | Discovered exit to Materials (range 12) 1197 | -10/Subcaves | A swath of the cavern ceiling suddenly collapsed 1239 | -10/Subcaves | Build established: Scavenger-Mutant 1269 | -10/Subcaves | Shifting Twisted Machinery released Scrap Shield 1275 | -10/Subcaves | Core integrity fell below 50% 1336 | -10/Subcaves | Learned location of Zion (-7) 1336 | -10/Subcaves | Met a Zionite searching for "candidates" 1615 | -10/Subcaves | Core integrity fell below 20% 1730 | -10/Subcaves | Learned Materials terminal intel 2206 | -10/Subcaves | Destroyed by 5N-8S0(R) with Subdweller Laser Last Messages --------------- 01820_ Sub. Power Source shoots sparks and powers down. 01829_ Subatomizers dissect the Disposable Heat Sink. 01851_ System corrupted: Energy discharge (-31). 01866_ Subatomizers dissect the Disposable Heat Sink. 01866_ Sub. Monowheel shoots sparks and powers down. 01879_ Subatomizers dissect the Disposable Heat Sink. 01983_ OIYHMHF#DSFKIW >K ZBW2UB0R7C IVJ 02058_ System corrupted: Matter fused (-9). 02077_ System corrupted: Energy discharge (-34). 02111_ Acquired 6 matter. 02113_ Acquired 8 matter. 02121_ Acquired 5 matter. 02130_ System corrupted: Matter fused (-10). 02158_ S,NENRHR614STQXPQHJFHDV26=6#PCXEX 02183_ System corrupted: Matter fused (-10). Map ----- +----------------------------------------------------+ | ???????????????????????????????????????????????# | | ???????????????????????????????????????????????# | | ???????????????????????????????????????????????# | | ???????????????????????????????????????????????## | | ???????????????????????????????????????????????# | | ???????????????????????????????????????????????## | | ????????????????????????????????????????????????# | | ????????????????????????????????????????????????# | | ????????????????????????????????????????????????# | | ????????????????????????????????????????????????# | | ????????????????????????????????????????????????## | | ????????????????????????????????????????????????# | | ????????????????????????????????????????????????# | | ????????????????????????????????????????????????# | | ????????????????????????????????????????????????## | | ?????????????????????????????????????????????????# | | ?????????????????????????????????????????????????# | | ??????????????????????????????? #???????????????## | | ??????????????????????????????""#??????????????## | | ???????????#####????????????? "??????????????## | | ???????????# ########?????? #????##??????### | | ????????#### ### #????? #???## ##???## | | ???????## ### #????? ##???# ##??# | | ???????# ## #????#"""#???# #??## | | ?????### #####R= ##????#"" ###### | | ?????# @ R #????#""""# #### | | ?????## #???## "" ### | | ??????# #???# #### | | ??????# # ###???#" ## #### | | ?????## ####????## """ ### | | ?????# ## #?????## """"" | | ?????### ##### #### ## ####### """# # | | ???????####???## #??#### #"# # ######### | | ???????????????###?????## " ##???????## | | ????????????????????????# # "# # #?????????#### | | ????????????????????????######## #???????????## | | ???????????????????????????????## ##???????????# | | ????????????????????????????????####????????????## | | ?????????????????????????????????????????????????? | | ?????????????????????????????????????????????????? | | ?????????????????????????????????????????????????? | | ?????????????????????????????????????????????????? | | ?????????????????????????????????????????????????? | | ?????????????????????????????????????????????????? | | ?????????????????????????????????????????????????? | | ?????????????????????????????????????????????????? | | ?????????????????????????????????????????????????? | | ?????????????????????????????????????????????????? | | ?????????????????????????????????????????????????? | | ?????????????????????????????????????????????????? | +----------------------------------------------------+ Best States ------------- Heat Dissipation 25 Energy Generation 15 Energy Capacity 250 Matter Stores 300 Matter Capacity 300 Sight Range 16 Terrain Scan Density 10 Evasion (%) 44 Recoil Reduction 1 Item Schematics ----------------- None Robot Schematics ------------------ None Fabricated ------------ Nothing Repaired ---------- Nothing Studied --------- None Alien Tech Used ----------------- None Achievements -------------- None Challenges ------------ None Game ------ Seed ComponentGaussClaymores Manual? 0 Play Time 00:35:05 Cumulative 64.5 hours Start 2026.06.24 @ 02:12:51 End 2026.06.24 @ 02:53:53 Sessions 1 Manual Loads 0 Difficulty Rogue Special Mode None Game No. 27 Rogue 27 Adventurer 0 Explorer 0 Win Type - Total 1 Types 1/0/0/0/0/0/0/0/0/0 Lore% 25 Gallery% 37 Achievement% 32 Wizard Run 0 Options --------- Layout 1 ASCII 0 Keyboard 0 Movement Arrows Keybinds 0 Fullscreen 1 Font 48/Smallcaps Map View 50x35 Zoom Use 0% Tactical HUD 1 Map Filters NONE Filters NONE Steam 1 RUN: 8213e4ac-fa3d-4d2d-9cee-83c034c6eb94